Cogmind - Beta 17.1 @@@ ROGUE MODE // 2026.09.14 @ 22:59:02 Player: Maynard Result: Destroyed by Shrapnel Trap Performance ------------- Evolutions (0) 0 Regions Visited (2) 400 Robots Destroyed (7) 35 Value Destroyed (246) 246 Prototype IDs (0) 0 Alien Tech Used (0) 0 Bonus (0) 0 TOTAL SCORE: 681 Bonus ------- None Cogmind --------- Core Integrity 0/250 Matter 280/300 Energy 121/125 System Corruption 0% Temperature Cool (2) Movement Treading (160) Location -10/Subcaves Parts ------- > --- POWER (1) -------- Light Ion Engine > --- PROPULSION (2) --- Spiked Treads Spiked Treads > --- UTILITY (2) ------ Small Storage Unit Targeting Computer > --- WEAPON (2) ------- Subdweller Beam Cannon Battle Rifle > --- INVENTORY (8) ---- Aluminum Leg Aluminum Leg Small Matter Pod (50) Subdweller Optics Subdweller Beam Cannon Subdweller Machine Gun Flamer Peak State ------------ > --- POWER ------------ Light Ion Engine > --- PROPULSION ------- Spiked Treads Spiked Treads > --- UTILITY ---------- Small Storage Unit Targeting Computer > --- WEAPON ----------- Subdweller Beam Cannon Battle Rifle > --- INVENTORY -------- Aluminum Leg Aluminum Leg Aluminum Leg Small Matter Pod Subdweller Optics Subdweller Beam Cannon Subdweller Machine Gun Flamer [Rating: 12] Favorites ----------- Power Ion Engine Engine Ion Engine Propulsion Aluminum Leg Treads Spiked Treads Leg Aluminum Leg Utility Small Storage Unit Device Subdweller Optics Storage Small Storage Unit Processor Targeting Computer Weapon Light Assault Rifle Energy Gun EM Pulse Gun Energy Cannon Subdweller Beam Cannon Ballistic Gun Light Assault Rifle Build | -11 -10 -10 ------- Run | Yrd Mat Sub Slots Evolved . | . . . Power . | . . . Propulsion . | . . . Utility . | . . . Weapon . | . . . Parts Attached 16 | 7 2 7 Power 2 | 2 . . Engine 2 | 2 . . Core . | . . . Reactor . | . . . Propulsion 5 | 2 . 3 Treads 2 | . . 2 Leg 3 | 2 . 1 Wheel . | . . . Hover . | . . . Flight . | . . . Utility 4 | 1 1 2 Device 1 | . . 1 Storage 2 | 1 1 . Processor 1 | . . 1 Hackware . | . . . Protection . | . . . Artifact . | . . . Weapon 5 | 2 1 2 Energy Gun 2 | 2 . . Energy Cannon 1 | . . 1 Ballistic Gun 2 | . 1 1 Ballistic Cannon . | . . . Launcher . | . . . Special Weapon . | . . . Impact Weapon . | . . . Slashing Weapon . | . . . Piercing Weapon . | . . . Special Melee Weapon . | . . . Unidentified Prototypes . | . . . Parts Lost 1 | . . 1 Power . | . . . Propulsion . | . . . Utility . | . . . Weapon 1 | . . 1 Highest Loss Streak 1 | . . 1 To Critical Strikes . | . . . Average Backups 7 | 5 7 7 Power . | . 1 . Propulsion 3 | 3 4 2 Utility 1 | . . 1 Weapon 1 | 1 1 1 Tool/Special . | . . . Unused Backups 11 | . 3 8 Power 1 | . 1 . Propulsion 5 | . 2 3 Utility 1 | . . 1 Weapon 4 | . . 4 Tool/Special . | . . . Average Slot Usage (%) 97 | . 95 97 Engine 14 | . 14 14 Treads 5 | . . 6 Leg 22 | . 28 21 Device 1 | . . 1 Storage 16 | . 23 14 Processor 10 | . . 11 Energy Gun 5 | . 23 2 Energy Cannon 4 | . . 4 Ballistic Gun 16 | . 4 18 Peak Build Rating 12 | 6 7 12 Average Rating 8 | 4 6 8 On Entrance 4 | . 6 7 Avg Prop Armor Cover (%) . | . . . Naked Turns . | . . . Heaviest Build 18 | 13 14 18 Greatest Support 40 | 20 20 40 Greatest Overweight (x) 2 | 2 . . Average Overweight (x) . | . . . Largest Inventory Capacity 8 | 8 8 8 Average Capacity 7 | 7 8 8 Most Carried 8 | 7 8 8 Average Carried 7 | 5 7 7 Final Capacity 8 | 8 8 8 Final Carried 8 | 7 8 7 Class Distribution -------------------- 100% | Mutant Dominant Class ---------------- Mutant | -10/Materials Mutant | -10/Subcaves Resources | -11 -10 -10 ----------- Run | Yrd Mat Sub Matter Collected 514 | 270 70 174 Remotely . | . . . Salvage Created 320 | 59 . 261 Parts 19 | 1 . 18 Haulers Intercepted . | . . . Recyclers Shooed . | . . . Parts Field Recycled . | . . . Retrieved Matter . | . . . Parts Self-Destructed 9 | . . 9 Prevented . | . . . Parts Restored . | . . . Kills | -11 -10 -10 ------- Run | Yrd Mat Sub Combat Hostiles Destroyed 6 | . . 6 Guns 4 | . . 4 Cannons 1 | . . 1 Classes Destroyed 2 | 1 . 1 Recycler 1 | 1 . . Subdweller 6 | . . 6 Best Kill Streak 2 | 1 . 2 Combat Bots Only 2 | . . 2 Max Kills in Single Turn 1 | 1 . 1 Gunslinging . | . . . Exploded . | . . . Melee . | . . . Uniques/NPCs Destroyed . | . . . Combat | -11 -10 -10 -------- Run | Yrd Mat Sub Hostile Shots Fired 44 | . . 44 Missed 21 | . . 21 Hits 23 | . . 23 Projectile 23 | . . 23 Critical Strikes 1 | . . 1 Damage Taken 628 | . 10 618 Core 255 | . 10 245 Absorbed by Shields . | . . . Core Remaining (%) 100 | 100 . . Volleys Fired 76 | 2 . 74 Largest 1 | 1 . 1 Hottest 80 | 40 . 80 Shots Fired 76 | 2 . 74 Gun 55 | 2 . 53 Cannon 21 | . . 21 Launcher . | . . . Special . | . . . Kinetic 46 | . . 46 Thermal 23 | 2 . 21 Explosive . | . . . Electromagnetic 7 | . . 7 Robot Hit Streak 25 | 2 . 25 Robot Miss Streak 3 | . . 3 Penetration Max . | . . . Secondary Targets . | . . . Shots Hit Robots 40 | 2 . 38 Core Hits 11 | 2 . 9 Critical Kills 2 | . . 2 Critical Parts Destroyed . | . . . Critical Strikes 2 | . . 2 Meltdown 1 | . . 1 Destroy 1 | . . 1 Melee Attacks . | . . . Impact . | . . . Slashing . | . . . Piercing . | . . . Sneak Attacks . | . . . Combat Hostiles . | . . . Follow-up Attacks . | . . . Damage Inflicted 583 | 24 . 559 Guns 462 | 24 . 438 Cannons 85 | . . 85 Explosions 36 | . . 36 Melee . | . . . Ramming . | . . . Kinetic 382 | . . 382 Thermal 145 | 24 . 121 Explosive . | . . . Electromagnetic 56 | . . 56 Impact . | . . . Slashing . | . . . Piercing . | . . . Highest Corruption . | . . . Average Corruption . | . . . Corruption Purged . | . . . Corruption Blocked . | . . . Overload Shots . | . . . Overflow Damage . | . . . Projectiles . | . . . Explosions . | . . . Melee . | . . . Knockbacks . | . . . Impact . | . . . Kinetic . | . . . Secondary . | . . . Self-Inflicted Damage . | . . . Shots . | . . . Rammed . | . . . Targets Rammed . | . . . Kicked . | . . . Crushed . | . . . Highest Temperature 261 | . . 261 Average Temperature 115 | . . 115 Received Heat Transfer 455 | . 6 449 Siege Activations . | . . . Martial Activations . | . . . Shielding Activations . | . . . Robots Disrupted . | . . . Combat Hostiles . | . . . Robots Corrupted . | . . . Combat Hostiles . | . . . Parts Fried . | . . . Impact Corruptions . | . . . Robots Melted 1 | . . 1 Combat Hostiles 1 | . . 1 Parts Melted 2 | . . 2 Heat Transferred 211 | 50 . 161 Parts Sabotaged . | . . . Parts Stolen . | . . . Parts Stripped . | . . . Power Chain Reactions 1 | . . 1 Alert | -11 -10 -10 ------- Run | Yrd Mat Sub Maximum Alert Level . | . . . Low Security (%) 100 | 100 100 . Level 1 . | . . . Level 2 . | . . . Level 3 . | . . . Level 4 . | . . . Level 5 . | . . . High Security . | . . . Max Security . | . . . Peak Influence 5 | 5 . . Initial . | . . . Average . | . . . Influence Increases 5 | 5 . . Destroy 0b10 Robot/NC 5 | 5 . . Influence Decreases 5 | 5 . . Time Decay 5 | 5 . . Squads Dispatched 4 | . 4 . Investigation 1 | . 1 . Extermination . | . . . Reinforcement 3 | . 3 . Assault . | . . . Garrison . | . . . Intercept . | . . . Searches Triggered . | . . . Construction Impeded . | . . . Haulers Reinforced . | . . . Active Scanning Responses . | . . . Cargo Convoy Interrupts . | . . . Stealth | -11 -10 -10 --------- Run | Yrd Mat Sub Distress Signals 1 | . 1 . Communications Jammed . | . . . Distress Signals . | . . . Times Spotted 13 | . 4 9 Peak Tracking Total 3 | . 3 2 Tactical Retreats 1 | . . 1 Traps | -11 -10 -10 ------- Run | Yrd Mat Sub Traps Triggered 1 | . . 1 Indirectly . | . . . Trap Hack Attempts . | . . . Triggered . | . . . Disarmed . | . . . Reprogrammed . | . . . Reused . | . . . Traps Extracted . | . . . Installed . | . . . Triggered . | . . . Machines | -11 -10 -10 ---------- Run | Yrd Mat Sub Machines Disabled . | . . . Max in Single Turn . | . . . Machines Repaired . | . . . Machines Dismantled . | . . . Machines Sabotaged . | . . . Overloaded Fab Kills . | . . . Hacking | -11 -10 -10 --------- Run | Yrd Mat Sub Machines Accessed 1 | . . 1 Terminals . | . . . Fabricators . | . . . Repair Stations . | . . . Recycling Units . | . . . Scanalyzers . | . . . Garrison Access . | . . . Total Hacks 4 | . . 4 Successful 4 | . . 4 Failed . | . . . Catastrophic . | . . . Database Lockouts . | . . . Manual 1 | . 1 . Terminals . | . . . Fabricators . | . . . Repair Stations . | . . . Recycling Units . | . . . Scanalyzers . | . . . Garrison Access . | . . . Terminal Hacks 4 | . . 4 Record 4 | . . 4 Fabricator Hacks . | . . . Repair Station Hacks . | . . . Recycling Unit Hacks . | . . . Scanalyzer . | . . . Garrison Access Hacks . | . . . Unauthorized Hacks . | . . . Terminals . | . . . Fabricators . | . . . Repair Stations . | . . . Recycling Units . | . . . Scanalyzers . | . . . Garrison Access . | . . . Data Cores Recovered . | . . . Used . | . . . Hacking Detections . | . . . Full Trace Events . | . . . Feedback Events . | . . . Feedback Blocked . | . . . Robot Schematics Acquired . | . . . Robots Built . | . . . Authchips . | . . . Time . | . . . Total Robot Build Rating . | . . . Part Schematics Acquired . | . . . Parts Built . | . . . Authchips . | . . . Time . | . . . Total Part Build Rating . | . . . Part Studies Acquired . | . . . Parts Repaired . | . . . Time . | . . . Parts Recycled . | . . . Recycled Matter . | . . . Retrieved Matter . | . . . Retrieved Components . | . . . Parts Scanalyzed . | . . . Part Schematics Acquired . | . . . Parts Damaged . | . . . Bothacking | -11 -10 -10 ------------ Run | Yrd Mat Sub Used RIF Installer . | . . . Robots Hacked . | . . . Non-combat . | . . . Combat . | . . . Robot Hacks Applied . | . . . Relay Couplers Released . | . . . Fabnet Peak Effective % . | . . . Robots Rewired . | . . . Allies Hacked . | . . . Hacks Repelled . | . . . Allies | -11 -10 -10 -------- Run | Yrd Mat Sub Total Allies . | . . . Largest Group . | . . . Highest-Rated Group . | . . . Highest-Rated Ally . | . . . Total Orders . | . . . Ally Attacks . | . . . Total Damage . | . . . Kills . | . . . Allies Corrupted . | . . . Allies Melted . | . . . Intel | -11 -10 -10 ------- Run | Yrd Mat Sub Active Infowar (turns) 148 | . . 148 Optics 148 | . . 148 Robot Analysis Total . | . . . Derelict Logs Recovered 2 | . . 2 Drone Launches . | . . . Drone Recoveries . | . . . Exploration | -11 -10 -10 ------------- Run | Yrd Mat Sub Turns Passed 1600 | 94 201 1305 Spaces Moved 1109 | 63 161 885 Core 11 | 11 . . Treads 169 | . . 169 Legs 929 | 52 161 716 Wheels . | . . . Hover . | . . . Flight . | . . . Fastest Speed 50 | 50 120 120 Average Speed 125 | 110 120 127 Slowest Speed 160 | 150 120 160 Overloaded Moves . | . . . Propulsion Burnouts . | . . . Robots Hopped . | . . . Potential Cave-ins . | . . . Cave-ins Triggered . | . . . Exploration Rate (%) 33 | 3 44 53 Regions Visited 2 Branch Regions 1 Pre-discovered Areas . | . . . Known Exits Taken . | . . . Unknown Exits Taken 2 | 1 1 . Scrap Searched 1 | . . 1 Spaces Dug . | . . . Terrain Destroyed 13 | . . 13 Melee . | . . . Projectile 1 | . . 1 AOE 12 | . . 12 Terrain Rammed . | . . . Walls Destroyed . | . . . Machines Disabled . | . . . Actions | -11 -10 -10 --------- Run | Yrd Mat Sub Total 1248 | 84 170 994 Wait 9 | . . 9 Move 1107 | 62 160 885 Hop . | . . . Pick Up 27 | 13 5 9 Fast Attach . | . . . Attach 8 | 6 1 1 Detach . | . . . Swap 9 | 1 1 7 Drop 12 | . 3 9 Fire 76 | 2 . 74 Melee . | . . . Ram . | . . . Kick . | . . . Crush . | . . . Escape Stasis . | . . . Rewire . | . . . Trap . | . . . Miscellaneous . | . . . Route ------- -11/Scrapyard -10/Materials (discovered 3 exits: [*Mat] / [*Min] / *Sub) -10/Subcaves History --------- Turn | Location | Event 9 | -11/Scrapyard | Discovered new exit (range 16) 95 | -11/Scrapyard | Entered Materials 96 | -10/Materials | Met a group of wandering Federalists 198 | -10/Materials | Discovered new exit (range 13) 246 | -10/Materials | Discovered new exit (range 16) 287 | -10/Materials | Discovered new exit (range 9) 296 | -10/Materials | Entered Subcaves 297 | -10/Subcaves | Continued accompanying wandering Federalists (4) 311 | -10/Subcaves | Build established: Mutant 522 | -10/Subcaves | Lost 7 allies 746 | -10/Subcaves | Core integrity fell below 50% 1015 | -10/Subcaves | Visited Clippyterm 1019 | -10/Subcaves | Learned Factory trap positions 1186 | -10/Subcaves | Learned Materials terminal intel 1204 | -10/Subcaves | Disturbed a concealed Subdweller 1205 | -10/Subcaves | Core integrity fell below 20% 1250 | -10/Subcaves | Shifting Twisted Machinery released Spk. Treads 1254 | -10/Subcaves | Shifting Twisted Machinery released Flamer 1262 | -10/Subcaves | Shifting Twisted Machinery released Sub. Machine Gun 1262 | -10/Subcaves | Shifting Twisted Machinery released Spk. Treads 1601 | -10/Subcaves | Destroyed by Shrapnel Trap Last Messages --------------- 01217_ Sub. Monowheel melted. 01224_ Acquired Sub. Beam Cannon. Spk. Treads falls loose from the Twisted Machinery. Flamer falls loose from the Twisted Machinery. 01259_ Acquired Spk. Treads. 01260_ Dropped Lgt. Treads. Sub. Machine Gun falls loose from the Twisted Machinery. Spk. Treads falls loose from the Twisted Machinery. 01275_ Acquired Flamer. 01276_ Dropped Lgt. Assault Rifle. 01304_ Acquired Spk. Treads. 01309_ Dropped Aluminum Leg. 01572_ Acquired derelict log, extracted data. Data stored: Storage entrances (x1). 01601_ Triggered Shrapnel Trap. 01601_ An expanding cloud of shrapnel blasts out in all directions. Map ----- +----------------------------------------------------+ | ?????????????????????????????????????????????????? | | ?????????????????????????????????????????????????? | | ?????????????????????????????????????????????????? | | ?????????????????????????????????????????????????? | | ?????????????????????????????????????????????????? | | ?????????????????????????????????????????????????? | | ?????????????????????????????????????????????????? | | ?????????????????????????????????????????????????? | | ?????????????????????????????????????????????????? | | ?????????????????????????????????????????????????? | | ?????????????????????????????????????????????????? | | ?????????????????????????????????????????????###?? | | ???????????######???????????###?###??????????# ##? | | ?????#####?# ###????????# #?# #####?????? #? | | ????## ### ########## ### ## ######?# #? | | ###?# ## ??# # # ## ## #?# #? | | #?## ## ?## ### #? | | ##??# ### ## #### ## | | ##??## ### ## ### ##??### | | #??## ### # ## ##?????# | | ##?# ### ### #?####?# | | ### ### ### # #### #?## | | ## ######## ## # ### ### ??######## | | #??### ### #?#### #?####????# | | #### ### ## #### ### ###??# | | ## # # ### @ #?# ##?# | | ### ### # #?#### #?# | | #?### ###?# # ### #???### #### | | #???## ##??# ####?# #????## ### | | #???#####???# #????# #????# | | #??????????## ???? ##??# ##### | | #?????????? ????####???# ##???## ## | | #?????????? ???????????## ############## | | # #??????????^ #????????????###?## ###??## | | # %####?????????####????????????????# ##??# | | # %#???????????????????????????????## #### | | ####???????????????????????????????# ## | | ???????????????????????????????????# # | | ???????????????????????????????????# | | ???????????????????????????????????# | | ???????????????????????????????????# ## | | ???????????????????????????????????# ?# | | ???????????????????????????????????#####?# | | ?????????????????????????????????????????# # | | ????????????????????????????????????????## ## | | ????????????????????????????????????????# ###? | | ????????????????????????????????????????## #??? | | ?????????????????????????????????????????## #### | | ??????????????????????????????????????????# # | | ??????????????????????????????????????????## | +----------------------------------------------------+ Best States ------------- Heat Dissipation 25 Energy Generation 10 Energy Capacity 250 Matter Stores 350 Matter Capacity 350 Sight Range 21 Terrain Scan Density 10 Evasion (%) 55 Targeting Accuracy 5 Recoil Reduction 2 Item Schematics ----------------- None Robot Schematics ------------------ None Fabricated ------------ Nothing Repaired ---------- Nothing Studied --------- None Alien Tech Used ----------------- None Achievements -------------- Strength In Numbers Challenges ------------ None Game ------ Seed MissileColdSheargun Manual? 0 Play Time 00:25:50 Cumulative 7.1 hours Start 2026.09.14 @ 22:33:32 End 2026.09.14 @ 22:59:02 Sessions 1 Manual Loads 0 Difficulty Rogue Special Mode None Game No. 7 Rogue 7 Adventurer 0 Explorer 0 Win Type - Total 0 Types 0/0/0/0/0/0/0/0/0/0 Lore% 2 Gallery% 10 Achievement% 8 Wizard Run 0 Options --------- Layout 1 ASCII 0 Keyboard 0 Movement Mouse Keybinds 0 Fullscreen 1 Font 24/Smallcaps Map View 50x35 Zoom Use 0% Tactical HUD 1 Map Filters NONE Filters NONE Steam 1 RUN: 48ffcc22-f018-45eb-8319-a3eb1df55474